bitfinex-derivatives/quotes_BTCF0:USTF0_20250913
["timestamp","ask_amount","ask_price","bid_price","bid_amount"]
[1757725332957,0.48419857,116320.0,116310.0,1.51645672]
[1757725336257,0.12339857,116320.0,116310.0,1.51645672]
[1757725339852,0.10177857,116320.0,116310.0,1.51645672]
[1757725340359,0.10177857,116320.0,116310.0,1.52525322]
[1757725349367,0.08890857,116320.0,116310.0,1.52525322]
[1757725349966,0.02029777,116320.0,116310.0,1.52525322]
[1757725352871,0.08249899,116330.0,116310.0,2.13605322]
[1757725353071,0.08249899,116330.0,116320.0,0.23049672]
[1757725353270,0.08249899,116330.0,116320.0,0.76049672]
[1757725354272,0.08249899,116330.0,116320.0,1.12129672]
[1757725354470,0.08249899,116330.0,116320.0,1.12329672]
[1757725354674,0.08249899,116330.0,116320.0,0.76249672]
[1757725359079,0.08249899,116330.0,116320.0,1.12329672]
[1757725364576,0.06929899,116330.0,116320.0,1.12329672]
[1757725364772,0.38294215,116340.0,116320.0,1.12329672]
[1757725364973,0.40586215,116340.0,116330.0,0.86139224]
[1757725367072,0.47420004,116340.0,116330.0,0.86139224]
[1757725367579,0.47420004,116340.0,116330.0,0.86239224]
[1757725367983,0.47420004,116340.0,116330.0,1.01605672]
[1757725371788,0.08176789,116340.0,116330.0,1.59605672]
[1757725372588,0.08176789,116340.0,116330.0,1.95685672]
[1757725378282,0.08176789,116340.0,116330.0,2.20685672]
[1757725378488,0.01343,116340.0,116330.0,2.20685672]
[1757725382592,0.01343,116340.0,116330.0,2.30924115]
[1757725385295,0.01343,116340.0,116330.0,2.18112886]
[1757725385794,0.08365153,116350.0,116330.0,1.49895329]
[1757725385991,0.08365153,116350.0,116340.0,0.10238443]
[1757725386193,0.08365153,116350.0,116340.0,0.62238443]
[1757725386392,0.10571153,116350.0,116340.0,0.62238443]
[1757725386788,0.1144205,116350.0,116340.0,1.40678443]
[1757725387095,0.1144205,116350.0,116340.0,0.52]
[1757725387293,0.1144205,116350.0,116340.0,1.50912886]
[1757725389799,0.1144205,116350.0,116340.0,0.72476886]
[1757725389997,0.1144205,116350.0,116340.0,1.50924886]
[1757725392098,0.10571153,116350.0,116340.0,1.50924886]
[1757725392798,0.10571153,116350.0,116340.0,1.61163329]
[1757725392998,0.10571153,116350.0,116340.0,1.50924886]
[1757725393399,0.11449013,116350.0,116340.0,1.50924886]
[1757725397001,0.10571153,116350.0,116340.0,1.50924886]
[1757725397206,0.10571153,116350.0,116340.0,1.61163329]
[1757725398106,0.10571153,116350.0,116340.0,1.50924886]
[1757725398309,0.08365153,116350.0,116340.0,1.50924886]
[1757725399110,0.08365153,116350.0,116340.0,1.61163329]
[1757725403512,0.08365153,116350.0,116340.0,1.50924886]
[1757725405112,0.08365153,116350.0,116340.0,1.61163329]
[1757725409214,0.08365153,116350.0,116340.0,1.50924886]
[1757725412315,0.10602153,116350.0,116340.0,0.72476886]
[1757725412521,0.10602153,116350.0,116340.0,1.30744]
[1757725412717,0.10602153,116350.0,116340.0,1.21220886]
[1757725417728,0.10602153,116350.0,116340.0,1.00744]
[1757725417929,0.10602153,116350.0,116340.0,1.21220886]
[1757725418429,0.10602153,116350.0,116340.0,0.22]
[1757725418729,0.10602153,116350.0,116340.0,1.21176886]
[1757725424340,0.10602153,116350.0,116340.0,1.007]
[1757725424538,0.10602153,116350.0,116340.0,1.21176886]
[1757725425238,0.10602153,116350.0,116340.0,0.99176886]
[1757725425440,0.10602153,116350.0,116340.0,1.53176886]
[1757725428441,0.10602153,116350.0,116340.0,0.74476886]
[1757725428739,0.10602153,116350.0,116340.0,1.53088886]
[1757725429442,0.46682153,116350.0,116340.0,1.53088886]
[1757725429740,0.48661294,116350.0,116340.0,0.83608]
[1757725429935,0.48661294,116350.0,116340.0,1.04084886]
[1757725433143,0.48661294,116350.0,116340.0,0.25476886]
[1757725433334,0.48661294,116350.0,116340.0,1.04064886]
[1757725436340,0.48661294,116350.0,116340.0,0.83588]
[1757725436541,0.48661294,116350.0,116340.0,1.04064886]
[1757725437144,0.83899737,116350.0,116320.0,0.36848443]
[1757725437340,0.13869443,116330.0,116320.0,0.3061]
[1757725437641,0.51978091,116330.0,116320.0,0.88814443]
[1757725440047,0.51978091,116330.0,116320.0,0.10238443]
[1757725440241,0.51978091,116330.0,116310.0,1.65096]
[1757725440242,0.01332,116320.0,116310.0,1.65096]
[1757725440445,0.49949443,116320.0,116310.0,0.25]
[1757725440844,0.85187886,116320.0,116310.0,0.78572]
[1757725441047,0.01332,116310.0,116300.0,0.10238443]
[1757725441243,0.39711,116310.0,116300.0,1.18814443]
[1757725441843,0.40570381,116310.0,116300.0,1.18814443]
[1757725442144,0.40570381,116310.0,116300.0,1.29052886]
[1757725442449,0.47421742,116310.0,116300.0,1.24348044]
[1757725442944,0.46562361,116310.0,116300.0,1.32034066]
[1757725443551,0.47429668,116310.0,116300.0,1.32034066]
[1757725443849,0.47429668,116310.0,116300.0,1.31634066]
[1757725444150,0.47429668,116310.0,116300.0,1.31934066]
[1757725444449,0.46562361,116310.0,116300.0,1.31934066]
[1757725446252,0.08183361,116310.0,116300.0,1.31934066]
[1757725447449,0.08183361,116310.0,116300.0,1.68014066]
[1757725447754,0.01332,116310.0,116300.0,1.93014066]
[1757725447946,0.37412,116320.0,116300.0,1.93014066]
[1757725448254,0.39711,116320.0,116310.0,0.23058066]
[1757725448452,0.03631,116320.0,116310.0,0.75058066]
[1757725450853,0.03631,116320.0,116310.0,0.75258066]
[1757725451553,0.03631,116320.0,116310.0,0.75358066]
[1757725453656,0.03631,116320.0,116310.0,1.53942066]
[1757725454354,0.39711,116320.0,116310.0,1.53942066]
[1757725456054,0.03631,116320.0,116310.0,1.53942066]
[1757725460255,0.03631,116320.0,116310.0,1.30884]
[1757725460449,0.03631,116320.0,116310.0,1.53942066]
[1757725461756,0.01332,116320.0,116310.0,1.78942066]
[1757725462159,0.01332,116320.0,116310.0,2.15022066]
[1757725472466,0.01332,116320.0,116310.0,2.15862638]
[1757725474266,0.01332,116320.0,116310.0,2.15022066]
[1757725479261,0.01332,116320.0,116310.0,1.11438066]
[1757725479570,0.01332,116320.0,116310.0,1.90194066]
[1757725484479,0.01332,116320.0,116310.0,1.11438066]
[1757725484675,0.03506,116320.0,116310.0,1.02066066]
[1757725484875,0.03506,116320.0,116310.0,1.18066066]
[1757725489483,0.03506,116320.0,116310.0,1.56066066]
[1757725497693,0.03506,116320.0,116310.0,0.77358066]
[1757725497991,0.03506,116320.0,116310.0,1.55954066]
[1757725501793,0.03506,116320.0,116310.0,0.77358066]
[1757725501995,0.03506,116320.0,116310.0,1.55926066]
[1757725502293,0.01332,116320.0,116310.0,1.55926066]
[1757725504395,0.01332,116320.0,116310.0,1.53353838]
[1757725504699,0.03360648,116330.0,116310.0,2.24676757]
[1757725504888,0.03360648,116330.0,116320.0,0.20485838]
[1757725505084,0.03360648,116330.0,116320.0,0.81485838]
[1757725505889,0.03360648,116330.0,116320.0,1.17565838]
[1757725506392,0.01332,116330.0,116320.0,1.17565838]
[1757725507291,0.01332,116330.0,116320.0,1.28008757]
[1757725509093,0.01332,116330.0,116320.0,1.28875865]
[1757725510594,0.01332,116340.0,116320.0,1.28875865]
[1757725510895,0.03606,116340.0,116330.0,0.99025838]
[1757725511095,0.03606,116340.0,116330.0,1.56025838]
[1757725513497,0.04485081,116340.0,116330.0,1.56025838]
[1757725513797,0.03606,116340.0,116330.0,1.56025838]
[1757725513998,0.01332,116340.0,116330.0,1.56025838]
[1757725514195,0.01332,116340.0,116330.0,1.56125838]
[1757725516397,0.02188067,116340.0,116330.0,1.56125838]
[1757725516696,0.01332,116340.0,116330.0,1.56125838]
[1757725519693,0.02183675,116340.0,116330.0,1.56125838]
[1757725522697,0.01332,116340.0,116330.0,1.56125838]
[1757725527808,0.01332,116340.0,116330.0,1.3564]
[1757725528001,0.01332,116340.0,116330.0,1.56125838]
[1757725529508,0.03637,116340.0,116330.0,0.77585838]
[1757725529698,0.03637,116340.0,116330.0,1.56133838]
[1757725531209,0.03637,116340.0,116330.0,0.77585838]
[1757725531409,0.03637,116340.0,116330.0,1.56125838]
[1757725532011,0.03637,116340.0,116330.0,0.571]
[1757725532308,0.03637,116340.0,116330.0,1.56121838]
[1757725532509,0.03637,116340.0,116330.0,1.45870919]
[1757725536612,0.03637,116340.0,116330.0,1.45890919]
[1757725536813,0.03637,116340.0,116330.0,0.67342919]
[1757725537012,0.03637,116340.0,116330.0,1.45870919]
[1757725540624,0.03637,116340.0,116330.0,0.67342919]
[1757725540826,0.03637,116340.0,116330.0,1.45934919]
[1757725542532,0.03637,116340.0,116330.0,1.35692]
[1757725542831,0.03637,116340.0,116330.0,1.45934919]
[1757725548332,0.03637,116340.0,116330.0,0.67342919]
[1757725548624,0.39717,116340.0,116330.0,0.88914919]
[1757725549530,0.39717,116340.0,116330.0,0.10342919]
[1757725549733,0.49959919,116340.0,116330.0,0.88914919]
[1757725550029,0.39717,116340.0,116330.0,0.88914919]
[1757725553536,0.39717,116340.0,116330.0,0.78672]
[1757725553737,0.39717,116340.0,116330.0,0.88914919]
[1757725557441,0.39717,116340.0,116330.0,0.78672]
[1757725557642,0.39717,116340.0,116330.0,0.88914919]
[1757725559646,0.39717,116340.0,116330.0,0.10342919]
[1757725559840,0.39717,116340.0,116330.0,0.88918919]
[1757725562647,0.39717,116340.0,116330.0,0.10342919]
[1757725562845,0.39717,116340.0,116330.0,0.88882919]
[1757725566350,0.39717,116340.0,116330.0,1.0168513]
[1757725569649,0.39717,116340.0,116330.0,0.7864]
[1757725569850,0.39717,116340.0,116330.0,1.0168513]
[1757725573557,0.39717,116340.0,116330.0,0.7864]
[1757725573757,0.39717,116340.0,116330.0,1.0168513]
[1757725575062,0.03637,116340.0,116330.0,1.0168513]
[1757725584263,0.39717,116340.0,116330.0,1.0168513]
[1757725584467,0.03637,116340.0,116330.0,1.0168513]
[1757725589265,0.39717,116340.0,116330.0,1.0168513]
[1757725589570,0.03637,116340.0,116330.0,1.0168513]
[1757725590571,0.03637,116340.0,116330.0,1.6368513]
[1757725593070,0.01332,116340.0,116330.0,1.8868513]
[1757725594573,0.01332,116340.0,116330.0,1.89555582]
[1757725598880,0.01332,116340.0,116330.0,1.8868513]
[1757725599473,0.01332,116340.0,116330.0,1.6368513]
[1757725601974,0.01332,116340.0,116330.0,1.9976513]
[1757725603475,0.01332,116340.0,116330.0,2.00629097]
[1757725613384,0.01332,116340.0,116330.0,1.9976513]
[1757725625789,0.01332,116340.0,116330.0,1.2122513]
[1757725626087,0.01332,116340.0,116330.0,1.9995713]
[1757725626289,0.01332,116340.0,116330.0,1.2122513]
[1757725626490,0.01332,116340.0,116330.0,1.97381492]
[1757725637497,0.01332,116340.0,116330.0,1.97541492]
[1757725640392,0.01332,116340.0,116330.0,1.18657492]
[1757725640597,0.01332,116340.0,116330.0,1.97509492]
[1757725641299,0.01332,116340.0,116330.0,1.18657492]
[1757725641502,0.01332,116340.0,116330.0,1.97513492]
[1757725641698,0.01332,116340.0,116330.0,1.77036]
[1757725641900,0.01332,116340.0,116330.0,1.97513492]
[1757725642195,0.08354153,116350.0,116330.0,1.97513492]
[1757725642389,0.08354153,116350.0,116340.0,0.20477492]
[1757725642595,0.08354153,116350.0,116340.0,0.79477492]
[1757725642893,0.10588153,116350.0,116340.0,0.79477492]
[1757725644100,0.11432851,116350.0,116340.0,0.79477492]
[1757725644403,0.11432851,116350.0,116340.0,0.59]
[1757725644593,0.11432851,116350.0,116340.0,0.79477492]
[1757725646699,0.11432851,116350.0,116340.0,0.59]
[1757725646902,0.11432851,116350.0,116340.0,0.79477492]
[1757725647296,0.11432851,116350.0,116340.0,0.59]
[1757725647499,0.11432851,116350.0,116340.0,0.79477492]
[1757725648802,0.11432851,116350.0,116340.0,0.59]
[1757725648998,0.11432851,116350.0,116340.0,0.79477492]
[1757725656405,0.11432851,116350.0,116340.0,0.59]
[1757725656703,0.11432851,116350.0,116340.0,1.58377492]
[1757725659608,0.11432851,116350.0,116340.0,1.379]
[1757725659907,0.11432851,116350.0,116340.0,1.58377492]
[1757725663603,0.11432851,116350.0,116340.0,0.79477492]
[1757725663805,0.11432851,116350.0,116340.0,1.17381492]
[1757725663996,0.47512851,116350.0,116340.0,1.17381492]
[1757725665310,0.11432851,116350.0,116340.0,1.17381492]
[1757725665513,0.47512851,116350.0,116340.0,1.46381492]
[1757725668009,0.47512851,116350.0,116340.0,1.25904]
[1757725668205,0.47512851,116350.0,116340.0,1.46381492]
[1757725670713,0.47512851,116350.0,116340.0,0.67477492]
[1757725670916,0.47512851,116350.0,116320.0,0.46318746]
[1757725670917,0.03552,116330.0,116320.0,0.46318746]
[1757725671111,0.03552,116330.0,116320.0,1.81174746]
[1757725671814,0.03552,116330.0,116320.0,1.45094746]
[1757725672013,0.03552,116330.0,116320.0,1.55333492]
[1757725672817,0.03552,116330.0,116320.0,1.55533492]
[1757725674722,0.03552,116330.0,116320.0,1.55505492]
[1757725678519,0.39632,116330.0,116320.0,0.562]
[1757725678720,0.39632,116330.0,116320.0,0.79992]
[1757725678921,0.39632,116330.0,116320.0,0.99453492]
[1757725679122,0.39632,116330.0,116320.0,0.10438746]
[1757725679423,0.39632,116330.0,116320.0,0.89218746]
[1757725679727,0.39632,116330.0,116320.0,0.7898]
[1757725680024,0.39632,116330.0,116320.0,0.89218746]
[1757725680327,0.74870746,116330.0,116320.0,0.002]
[1757725680521,0.76834699,116330.0,116320.0,0.002]
[1757725683530,0.76834699,116330.0,116320.0,0.003]
[1757725684630,0.66595953,116330.0,116320.0,0.003]
[1757725685030,0.76834699,116330.0,116320.0,0.003]
[1757725688331,0.74281039,116330.0,116320.0,0.07985086]
[1757725688633,0.81966125,116330.0,116320.0,0.07985086]
[1757725689534,0.81966125,116330.0,116320.0,0.003]
[1757725689834,0.81966125,116330.0,116320.0,0.07985086]
[1757725690036,0.89651211,116330.0,116320.0,0.07985086]
[1757725690732,0.89651211,116330.0,116320.0,0.003]
[1757725691145,1.68475211,116330.0,116320.0,0.003]
[1757725691439,0.89651211,116330.0,116320.0,0.003]
[1757725694337,0.89651211,116330.0,116320.0,0.07985086]
[1757725694537,0.81966125,116330.0,116320.0,0.07985086]
[1757725697440,0.66595953,116330.0,116320.0,0.07985086]
[1757725697740,0.81966125,116330.0,116320.0,0.07985086]
[1757725699638,1.60810125,116330.0,116320.0,0.07985086]
[1757725700535,0.66595953,116330.0,116320.0,0.15670172]
[1757725700838,0.41595953,116330.0,116320.0,0.23355258]
[1757725701039,0.49281039,116330.0,116320.0,0.15670172]
[1757725701737,0.49281039,116330.0,116320.0,0.003]
[1757725702042,0.49281039,116330.0,116320.0,0.15670172]
[1757725702534,0.49281039,116330.0,116320.0,0.003]
[1757725702840,0.49281039,116330.0,116320.0,0.15670172]
[1757725705644,0.49281039,116330.0,116320.0,0.003]
[1757725705844,0.49281039,116330.0,116320.0,0.15670172]
[1757725707442,0.41595953,116330.0,116320.0,0.23355258]
[1757725708241,0.41595953,116330.0,116320.0,0.003]
[1757725708442,0.41595953,116330.0,116320.0,0.23355258]
[1757725712150,0.41595953,116330.0,116320.0,0.15670172]
[1757725712650,0.41595953,116330.0,116320.0,0.003]
[1757725712854,0.41595953,116330.0,116320.0,0.15670172]
[1757725713047,0.41595953,116330.0,116320.0,0.003]
[1757725713247,0.49281039,116330.0,116320.0,0.15670172]
[1757725713451,0.49281039,116330.0,116320.0,0.07985086]
[1757725714146,0.49281039,116330.0,116320.0,0.003]
[1757725714352,0.56966125,116330.0,116320.0,0.07985086]
[1757725714851,0.49281039,116330.0,116320.0,0.07985086]
[1757725715956,0.56966125,116330.0,116320.0,0.07985086]
[1757725717851,0.56966125,116330.0,116320.0,0.003]
[1757725719062,0.56966125,116330.0,116320.0,0.07985086]
[1757725720860,0.56966125,116330.0,116320.0,0.003]
[1757725721053,0.56966125,116330.0,116320.0,0.07985086]
[1757725723558,0.41595953,116330.0,116320.0,0.07985086]
[1757725723861,0.56966125,116330.0,116320.0,0.07985086]
[1757725731278,0.41595953,116330.0,116320.0,0.07985086]
[1757725731479,0.56966125,116330.0,116320.0,0.07985086]
[1757725731670,0.41595953,116330.0,116320.0,0.07985086]
[1757725731873,0.56966125,116330.0,116320.0,0.07985086]
[1757725733369,0.49281039,116330.0,116320.0,0.07985086]
[1757725733781,0.56966125,116330.0,116320.0,0.07985086]
[1757725734281,0.49281039,116330.0,116320.0,0.07985086]
[1757725736184,0.41595953,116330.0,116320.0,0.07985086]
[1757725736583,0.41595953,116330.0,116320.0,0.15670172]
[1757725736584,0.49281039,116330.0,116320.0,0.15670172]
[1757725736979,0.41595953,116330.0,116320.0,0.15670172]
[1757725737185,0.49281039,116330.0,116320.0,0.15670172]
[1757725737882,0.41595953,116330.0,116320.0,0.15670172]
[1757725738084,0.49281039,116330.0,116320.0,0.15670172]
[1757725740783,0.41595953,116330.0,116320.0,0.15670172]
[1757725741185,0.49281039,116330.0,116320.0,0.15670172]
[1757725742480,0.41595953,116330.0,116320.0,0.15670172]
[1757725742688,0.41595953,116330.0,116320.0,0.23355258]
[1757725742987,0.49281039,116330.0,116320.0,0.23355258]
[1757725743282,0.41595953,116330.0,116320.0,0.23355258]
[1757725748588,0.49281039,116330.0,116320.0,0.15670172]
[1757725748789,0.49281039,116330.0,116320.0,0.003]
[1757725748992,0.49281039,116330.0,116320.0,0.15670172]
[1757725750391,0.41595953,116330.0,116320.0,0.10544589]
[1757725754395,0.41595953,116330.0,116320.0,0.003]
[1757725754786,0.41595953,116330.0,116320.0,0.10544589]
[1757725755596,0.51840542,116330.0,116320.0,0.10544589]
[1757725755890,0.41595953,116330.0,116320.0,0.003]
[1757725756087,0.51840542,116330.0,116320.0,0.10544589]
[1757725756694,0.41595953,116330.0,116320.0,0.10544589]
[1757725756995,0.51840542,116330.0,116320.0,0.10544589]
[1757725758497,0.41595953,116330.0,116320.0,0.10544589]
[1757725759896,0.41595953,116330.0,116320.0,0.003]
[1757725760094,0.41595953,116330.0,116320.0,0.10544589]
[1757725765002,0.41595953,116330.0,116320.0,0.20789178]
[1757725773006,0.41595953,116330.0,116320.0,0.003]
[1757725773204,0.41595953,116330.0,116320.0,0.20789178]
[1757725784211,0.41595953,116330.0,116320.0,0.45789178]
[1757725784407,0.41595953,116330.0,116320.0,0.56033767]
[1757725784604,0.03552,116330.0,116320.0,0.45789178]
[1757725784808,0.39632,116330.0,116320.0,0.45789178]
[1757725788220,0.39632,116330.0,116320.0,0.253]
[1757725788421,0.39632,116330.0,116320.0,0.45789178]
[1757725789126,0.39632,116330.0,116320.0,0.46089178]
[1757725789317,0.41525,116330.0,116320.0,0.46089178]
[1757725792723,0.41525,116330.0,116320.0,0.256]
[1757725793022,0.41525,116330.0,116320.0,0.46089178]
[1757725796529,0.41525,116330.0,116320.0,1.00125178]
[1757725800334,0.41525,116330.0,116320.0,0.79636]
[1757725800529,0.41525,116330.0,116320.0,1.00125178]
[1757725801222,0.05445,116330.0,116320.0,1.00125178]
[1757725802137,0.05445,116330.0,116320.0,0.79636]
[1757725802433,0.05445,116330.0,116320.0,1.00125178]
[1757725806841,0.05445,116330.0,116320.0,0.79636]
[1757725807041,0.05445,116330.0,116320.0,1.00125178]
[1757725809540,0.05445,116330.0,116320.0,0.21089178]
[1757725809741,0.41525,116330.0,116320.0,1.01617178]
[1757725811835,0.41525,116330.0,116320.0,0.81128]
[1757725812040,0.41525,116330.0,116320.0,1.01617178]
[1757725812439,0.41525,116330.0,116320.0,1.04172995]
[1757725814037,0.41525,116330.0,116320.0,0.23644995]
[1757725814238,0.41525,116330.0,116320.0,1.04232995]
[1757725815441,0.41525,116330.0,116320.0,0.81188]
[1757725815642,0.41525,116330.0,116320.0,1.04232995]
[1757725816138,0.41525,116330.0,116320.0,0.23644995]
[1757725816338,0.41525,116330.0,116320.0,1.04228995]
[1757725818846,0.41525,116330.0,116320.0,0.81184]
[1757725819042,0.41525,116330.0,116320.0,1.04228995]
[1757725819242,0.41525,116330.0,116320.0,0.81184]
[1757725819442,0.41525,116330.0,116320.0,1.04228995]
[1757725820238,0.05445,116330.0,116320.0,0.81184]
[1757725821045,0.41525,116330.0,116320.0,0.81184]
[1757725821545,0.41525,116330.0,116320.0,1.04228995]
[1757725822539,0.05445,116330.0,116320.0,1.04228995]
[1757725822845,0.05445,116330.0,116320.0,0.81184]
[1757725823048,0.41525,116330.0,116320.0,1.04228995]
[1757725823348,0.41525,116330.0,116320.0,0.81184]
[1757725823648,0.41525,116330.0,116320.0,1.04228995]
[1757725823845,0.41525,116330.0,116320.0,0.81184]
[1757725824042,0.05445,116330.0,116320.0,1.04228995]
[1757725824544,0.41525,116330.0,116320.0,1.04228995]
[1757725824849,0.41525,116330.0,116320.0,0.81184]
[1757725825048,0.41525,116330.0,116320.0,1.04228995]
[1757725826746,0.41525,116330.0,116320.0,0.81184]
[1757725827050,0.41525,116330.0,116320.0,1.04228995]
[1757725827346,0.41525,116330.0,116320.0,0.23644995]
[1757725827648,0.41525,116330.0,116320.0,1.04404995]
[1757725827946,0.41525,116330.0,116320.0,0.8136]
[1757725828350,0.41525,116330.0,116320.0,1.04404995]
[1757725828945,0.41525,116330.0,116320.0,0.8136]
[1757725829146,0.41525,116330.0,116320.0,0.9672333]
[1757725829648,0.41525,116330.0,116320.0,0.8136]
[1757725829843,0.41525,116330.0,116320.0,1.04404995]
[1757725830353,0.41525,116330.0,116320.0,0.8136]
[1757725830552,0.41525,116330.0,116320.0,1.04404995]
[1757725830852,0.41525,116330.0,116320.0,0.8136]
[1757725831150,0.49206665,116330.0,116320.0,0.9673133]
[1757725831350,0.41525,116330.0,116320.0,0.81368]
[1757725831552,0.41525,116330.0,116320.0,0.9673133]
[1757725831953,0.41525,116330.0,116320.0,1.04412995]
[1757725835058,0.41525,116330.0,116320.0,0.81368]
[1757725835258,0.41525,116330.0,116320.0,1.04412995]
[1757725837859,0.41525,116330.0,116320.0,0.006]
[1757725838060,0.41525,116330.0,116320.0,0.8138]
[1757725838261,0.41525,116330.0,116320.0,1.04424995]
[1757725838760,0.41525,116330.0,116320.0,0.8138]
[1757725839261,0.41525,116330.0,116320.0,1.04424995]
[1757725840961,0.41525,116330.0,116320.0,0.8138]
[1757725841361,0.41525,116330.0,116320.0,1.04424995]
[1757725841857,0.41525,116330.0,116320.0,0.89061665]
[1757725842062,0.41525,116330.0,116320.0,1.04424995]
[1757725845766,0.41525,116330.0,116320.0,0.8138]
[1757725846169,0.41525,116330.0,116320.0,1.04424995]
[1757725847773,0.49206665,116330.0,116320.0,0.9674333]
[1757725848075,0.49206665,116330.0,116320.0,1.04344995]
[1757725848076,0.41525,116330.0,116320.0,1.04344995]
[1757725848370,0.41525,116330.0,116320.0,0.9666333]
[1757725848771,0.49206665,116330.0,116320.0,0.9666333]
[1757725849877,0.49206665,116330.0,116320.0,0.813]
[1757725850061,0.89569995,116330.0,116320.0,0.006]
[1757725850366,0.8188833,116330.0,116320.0,0.006]
[1757725850562,0.66525,116330.0,116320.0,0.006]
[1757725850768,0.89569995,116330.0,116320.0,0.006]
[1757725852774,0.66525,116330.0,116320.0,0.006]
[1757725852974,0.89569995,116330.0,116320.0,0.006]
[1757725853168,0.8188833,116330.0,116320.0,0.08281665]
[1757725853664,0.8188833,116330.0,116320.0,0.006]
[1757725854064,0.8188833,116330.0,116320.0,0.08281665]
[1757725854269,0.8188833,116330.0,116320.0,0.006]
[1757725854771,0.8188833,116330.0,116320.0,0.08281665]
[1757725855574,0.66525,116330.0,116320.0,0.006]
[1757725855775,0.8188833,116330.0,116320.0,0.08281665]
[1757725855976,0.8188833,116330.0,116320.0,0.006]
[1757725856177,0.8188833,116330.0,116320.0,0.08281665]
[1757725857676,0.8188833,116330.0,116320.0,0.006]
[1757725858075,0.8188833,116330.0,116320.0,0.08281665]
[1757725858481,0.8188833,116330.0,116320.0,0.006]
[1757725858671,0.8188833,116330.0,116320.0,0.08281665]
[1757725858978,0.8188833,116330.0,116320.0,0.006]
[1757725859172,0.8188833,116330.0,116320.0,0.08281665]
[1757725859372,0.8188833,116330.0,116320.0,0.006]
[1757725859568,0.8188833,116330.0,116320.0,0.08281665]
[1757725859779,0.8188833,116330.0,116320.0,0.006]
[1757725859975,0.89569995,116330.0,116320.0,0.08281665]
[1757725860176,0.89569995,116330.0,116320.0,0.006]
[1757725860376,0.89569995,116330.0,116320.0,0.08281665]
[1757725860576,0.89569995,116330.0,116320.0,0.006]
[1757725860777,0.89569995,116330.0,116320.0,0.08281665]
[1757725860978,0.89569995,116330.0,116320.0,0.006]
[1757725861277,0.89569995,116330.0,116320.0,0.08281665]
[1757725861974,0.8188833,116330.0,116320.0,0.006]
[1757725862180,0.8188833,116330.0,116320.0,0.08281665]
[1757725862379,0.8188833,116330.0,116320.0,0.006]
[1757725862881,0.89569995,116330.0,116320.0,0.006]
[1757725864085,0.66525,116330.0,116320.0,0.006]
[1757725864281,0.89569995,116330.0,116320.0,0.006]
[1757725866386,0.66525,116330.0,116320.0,0.006]
[1757725866588,0.89569995,116330.0,116320.0,0.006]
[1757725866787,0.66525,116330.0,116320.0,0.006]
[1757725866987,0.89569995,116330.0,116320.0,0.006]
[1757725868186,0.8188833,116330.0,116320.0,0.08281665]
[1757725868389,0.89569995,116330.0,116320.0,0.08281665]
[1757725868591,0.89569995,116330.0,116320.0,0.006]
[1757725868790,0.66525,116330.0,116320.0,0.08281665]
[1757725868989,0.89569995,116330.0,116320.0,0.08281665]
[1757725870093,0.89569995,116330.0,116320.0,0.006]
[1757725870287,0.89569995,116330.0,116320.0,0.08281665]
[1757725871694,0.89569995,116330.0,116320.0,0.006]
[1757725871994,0.89569995,116330.0,116320.0,0.08281665]
[1757725872393,0.76771718,116330.0,116320.0,0.006]
[1757725873496,0.66525,116330.0,116320.0,0.006]
[1757725873796,0.76771718,116330.0,116320.0,0.006]
[1757725879298,0.66525,116330.0,116320.0,0.006]
[1757725879492,0.76771718,116330.0,116320.0,0.006]
[1757725881498,0.66525,116330.0,116320.0,0.006]
[1757725881701,0.76771718,116330.0,116320.0,0.006]
[1757725884302,0.66525,116330.0,116320.0,0.006]
[1757725884499,0.76771718,116330.0,116320.0,0.006]
[1757725888508,0.66525,116330.0,116320.0,0.006]
[1757725888711,0.76771718,116330.0,116320.0,0.006]
[1757725899315,0.51771718,116330.0,116320.0,0.006]
[1757725902129,0.41525,116330.0,116320.0,0.006]
[1757725902429,0.51771718,116330.0,116320.0,0.006]
[1757725903028,0.41525,116330.0,116320.0,0.006]
[1757725903226,0.51771718,116330.0,116320.0,0.006]
[1757725905125,0.41525,116330.0,116320.0,0.006]
[1757725905328,0.51771718,116330.0,116320.0,0.006]
[1757725908830,0.41525,116330.0,116320.0,0.006]
[1757725909129,0.51771718,116330.0,116320.0,0.006]
[1757725915332,0.41525,116330.0,116320.0,0.006]
[1757725915532,0.51771718,116330.0,116320.0,0.006]
[1757725927138,0.87018436,116330.0,116280.0,0.3608]
[1757725927439,0.03618,116280.0,116270.0,0.3608]
[1757725927643,0.03618,116280.0,116270.0,0.9408]
[1757725928045,0.03618,116280.0,116270.0,0.58]
[1757725928534,0.03618,116280.0,116270.0,0.68246718]
[1757725929142,0.04466093,116280.0,116270.0,0.68246718]
[1757725929641,0.04466093,116280.0,116270.0,0.69046718]
[1757725929841,0.04466093,116280.0,116270.0,0.94046718]
[1757725930336,0.06359093,116280.0,116270.0,0.94046718]
[1757725930736,0.06359093,116280.0,116270.0,0.94546718]
[1757725931436,0.52685811,116280.0,116270.0,0.013]
[1757725931641,0.52685811,116280.0,116270.0,0.183]
[1757725931841,0.59497687,116280.0,116270.0,0.28546718]
[1757725934342,0.56941426,116280.0,116270.0,0.25990457]
[1757725936143,0.49250969,116280.0,116270.0,0.25990457]
[1757725936343,0.56941426,116280.0,116270.0,0.25990457]
[1757725936846,0.64631883,116280.0,116270.0,0.25990457]
[1757725937039,0.7232234,116280.0,116270.0,0.183]
[1757725937234,0.64631883,116280.0,116270.0,0.25990457]
[1757725937439,0.9732234,116280.0,116270.0,0.013]
[1757725937736,1.7788234,116280.0,116270.0,0.013]
[1757725939348,1.7788234,116280.0,116270.0,0.008]
[1757725939544,1.7788234,116280.0,116270.0,0.007]
[1757725939942,1.54810969,116280.0,116270.0,0.007]
[1757725940246,1.7788234,116280.0,116270.0,0.007]
[1757725943349,0.9732234,116280.0,116270.0,0.007]
[1757725943550,1.7793834,116280.0,116270.0,0.007]
[1757725948250,0.9732234,116280.0,116270.0,0.007]
[1757725948455,1.7785834,116280.0,116270.0,0.007]
[1757725950558,0.74250969,116280.0,116270.0,0.007]
[1757725950752,1.54766969,116280.0,116270.0,0.007]
[1757725950958,1.7783834,116280.0,116270.0,0.007]
[1757725955060,1.54766969,116280.0,116270.0,0.007]
[1757725955260,1.7783834,116280.0,116270.0,0.007]
[1757725956857,1.54766969,116280.0,116270.0,0.007]